[Event "*** Qualifier 4: Titled Tuesday 3|2 Blitz"]
[Site "Chess.com"]
[Date "2017.04.25"]
[Round "3"]
[White "GrigorGrigorov"]
[Black "Sanan_Sjugirov"]
[Result "1/2-1/2"]
[WhiteElo "2508"]
[BlackElo "2650"]
[TimeControl "180+2"]
[EndTime "13:35:19 PDT"]
[Termination "Game drawn - insufficient material"]

1. Nf3 {[%clk 0:03:02]} 1... d5 {[%clk 0:02:58.9]} 2. e3 {[%clk 0:03:02.5]} 2...
Nf6 {[%clk 0:02:58.3]} 3. c4 {[%clk 0:03:03]} 3... e6 {[%clk 0:02:57.9]} 4. d4
{[%clk 0:03:00.5]} 4... Be7 {[%clk 0:02:57.2]} 5. b3 {[%clk 0:02:58.7]} 5... O-O
{[%clk 0:02:55.7]} 6. Bd3 {[%clk 0:02:59.6]} 6... c5 {[%clk 0:02:56.1]} 7. O-O
{[%clk 0:02:59.7]} 7... cxd4 {[%clk 0:02:53.9]} 8. exd4 {[%clk 0:03:00]} 8... b6
{[%clk 0:02:50.7]} 9. Bb2 {[%clk 0:02:58.5]} 9... Bb7 {[%clk 0:02:51.4]} 10.
Nbd2 {[%clk 0:02:46.8]} 10... Nc6 {[%clk 0:02:50.1]} 11. Rc1 {[%clk 0:02:42.3]}
11... Rc8 {[%clk 0:02:50.6]} 12. Qe2 {[%clk 0:02:42.3]} 12... Re8 {[%clk
0:02:48.8]} 13. Rfd1 {[%clk 0:02:41.5]} 13... Bf8 {[%clk 0:02:32]} 14. Nf1
{[%clk 0:02:41.8]} 14... g6 {[%clk 0:02:25.5]} 15. Ne3 {[%clk 0:02:41.7]} 15...
Bg7 {[%clk 0:02:23.4]} 16. Ne5 {[%clk 0:02:39.9]} 16... dxc4 {[%clk 0:02:19.4]}
17. Bxc4 {[%clk 0:02:30.4]} 17... Nb4 {[%clk 0:01:17.5]} 18. Ba3 {[%clk
0:02:13.3]} 18... a5 {[%clk 0:01:08.7]} 19. Bb5 {[%clk 0:02:05.6]} 19... Re7
{[%clk 0:01:03.6]} 20. Rxc8 {[%clk 0:02:00.4]} 20... Qxc8 {[%clk 0:01:04.5]} 21.
Nd3 {[%clk 0:01:49.7]} 21... Ne4 {[%clk 0:00:39]} 22. Rc1 {[%clk 0:01:27.9]}
22... Rc7 {[%clk 0:00:39.3]} 23. Rxc7 {[%clk 0:01:07.5]} 23... Qxc7 {[%clk
0:00:41.2]} 24. Nxb4 {[%clk 0:01:08.6]} 24... axb4 {[%clk 0:00:41.9]} 25. Bxb4
{[%clk 0:01:08.4]} 25... Bxd4 {[%clk 0:00:39.9]} 26. Be1 {[%clk 0:00:29]} 26...
Qc1 {[%clk 0:00:36]} 27. Kf1 {[%clk 0:00:30.2]} 27... Bc3 {[%clk 0:00:21.2]} 28.
Qd1 {[%clk 0:00:19.4]} 28... Qb2 {[%clk 0:00:17.7]} 29. Qc2 {[%clk 0:00:19.1]}
29... Qa1 {[%clk 0:00:12.4]} 30. Qd1 {[%clk 0:00:19.2]} 30... Qb2 {[%clk
0:00:09.3]} 31. Qc2 {[%clk 0:00:19.9]} 31... Qxc2 {[%clk 0:00:10.1]} 32. Nxc2
{[%clk 0:00:20.6]} 32... Bxe1 {[%clk 0:00:10.7]} 33. Kxe1 {[%clk 0:00:17.7]}
33... Nc3 {[%clk 0:00:11.6]} 34. Bf1 {[%clk 0:00:18.7]} 34... Nxa2 {[%clk
0:00:08.4]} 35. Kd2 {[%clk 0:00:19.2]} 35... Be4 {[%clk 0:00:10]} 36. Ne3 {[%clk
0:00:18.1]} 36... Nb4 {[%clk 0:00:10.2]} 37. Nc4 {[%clk 0:00:18.9]} 37... Nd5
{[%clk 0:00:09.2]} 38. f3 {[%clk 0:00:19.3]} 38... Bb1 {[%clk 0:00:09.1]} 39.
Kc1 {[%clk 0:00:19]} 39... b5 {[%clk 0:00:07]} 40. Nd6 {[%clk 0:00:18.2]} 40...
Bf5 {[%clk 0:00:03.3]} 41. g4 {[%clk 0:00:18.2]} 41... Ne3 {[%clk 0:00:03.9]}
42. Be2 {[%clk 0:00:18.3]} 42... Bc2 {[%clk 0:00:04.4]} 43. Kd2 {[%clk
0:00:19.3]} 43... Bxb3 {[%clk 0:00:04.3]} 44. Kxe3 {[%clk 0:00:20.4]} 44... b4
{[%clk 0:00:05.9]} 45. g5 {[%clk 0:00:18.7]} 45... Bd5 {[%clk 0:00:05.4]} 46. f4
{[%clk 0:00:18]} 46... Kg7 {[%clk 0:00:05.4]} 47. Kd4 {[%clk 0:00:16.6]} 47...
b3 {[%clk 0:00:05.9]} 48. Kc3 {[%clk 0:00:17.2]} 48... h6 {[%clk 0:00:06]} 49.
h4 {[%clk 0:00:17.7]} 49... hxg5 {[%clk 0:00:07.3]} 50. hxg5 {[%clk 0:00:18.7]}
50... Kf8 {[%clk 0:00:09]} 51. Bd1 {[%clk 0:00:17.5]} 51... Ke7 {[%clk
0:00:09.8]} 52. Nb5 {[%clk 0:00:18.2]} 52... f6 {[%clk 0:00:09.7]} 53. Bxb3
{[%clk 0:00:18.1]} 53... Bxb3 {[%clk 0:00:10.1]} 54. Kxb3 {[%clk 0:00:19.1]}
54... fxg5 {[%clk 0:00:07.4]} 55. fxg5 {[%clk 0:00:19.6]} 55... e5 {[%clk
0:00:09]} 56. Kc4 {[%clk 0:00:17.7]} 56... Ke6 {[%clk 0:00:10.3]} 57. Nc3 {[%clk
0:00:17.2]} 57... Kf5 {[%clk 0:00:11.5]} 58. Kd5 {[%clk 0:00:18.7]} 58... Kxg5
{[%clk 0:00:12.9]} 59. Kxe5 {[%clk 0:00:20]} 59... Kg4 {[%clk 0:00:14.2]} 60.
Kf6 {[%clk 0:00:20.4]} 60... g5 {[%clk 0:00:15.5]} 61. Ne4 {[%clk 0:00:21.8]}
61... Kf3 {[%clk 0:00:16.9]} 62. Nxg5+ {[%clk 0:00:23.4]} 1/2-1/2

[Event "*** Qualifier 4: Titled Tuesday 3|2 Blitz"]
[Site "Chess.com"]
[Date "2017.04.25"]
[Round "3"]
[White "geeeeri"]
[Black "Schemato"]
[Result "1-0"]
[WhiteElo "2282"]
[BlackElo "2239"]
[TimeControl "180+2"]
[EndTime "13:35:42 PDT"]
[Termination "geeeeri won by resignation"]

1. e4 {[%clk 0:03:02]} 1... e6 {[%clk 0:03:00.5]} 2. d3 {[%clk 0:02:59.7]} 2...
c5 {[%clk 0:02:58.9]} 3. Nd2 {[%clk 0:03:00.6]} 3... Nc6 {[%clk 0:02:59.4]} 4.
Ngf3 {[%clk 0:03:02.5]} 4... g6 {[%clk 0:02:57.5]} 5. g3 {[%clk 0:03:04.4]} 5...
Bg7 {[%clk 0:02:58.7]} 6. Bg2 {[%clk 0:03:06.3]} 6... Nge7 {[%clk 0:03:00.3]} 7.
O-O {[%clk 0:03:07.5]} 7... O-O {[%clk 0:03:01.9]} 8. Re1 {[%clk 0:03:09.3]}
8... d6 {[%clk 0:02:58.4]} 9. h4 {[%clk 0:03:09.7]} 9... h6 {[%clk 0:02:58.4]}
10. Nf1 {[%clk 0:03:10.6]} 10... e5 {[%clk 0:02:55.9]} 11. h5 {[%clk 0:03:05.8]}
11... g5 {[%clk 0:02:56.2]} 12. N3h2 {[%clk 0:02:57.5]} 12... f5 {[%clk
0:02:50.9]} 13. exf5 {[%clk 0:02:53.9]} 13... Bxf5 {[%clk 0:02:48.6]} 14. c3
{[%clk 0:02:54.9]} 14... Qd7 {[%clk 0:02:46.1]} 15. Be3 {[%clk 0:02:37.3]} 15...
Kh8 {[%clk 0:02:41.3]} 16. Qd2 {[%clk 0:02:37.6]} 16... Rae8 {[%clk 0:02:30.3]}
17. b4 {[%clk 0:02:24.4]} 17... cxb4 {[%clk 0:02:20.8]} 18. cxb4 {[%clk
0:02:26.3]} 18... Bh3 {[%clk 0:02:15.2]} 19. Bh1 {[%clk 0:02:13.3]} 19... e4
{[%clk 0:01:58.7]} 20. Bxe4 {[%clk 0:02:09]} 20... d5 {[%clk 0:01:46.8]} 21. Bh1
{[%clk 0:01:35.1]} 21... d4 {[%clk 0:01:47.2]} 22. Bxg5 {[%clk 0:01:35.9]} 22...
hxg5 {[%clk 0:01:48.3]} 23. Qxg5 {[%clk 0:01:37.8]} 23... Ng8 {[%clk 0:01:44]}
24. g4 {[%clk 0:01:08.8]} 24... Nh6 {[%clk 0:01:32.5]} 25. Bf3 {[%clk
0:00:45.4]} 25... Ne5 {[%clk 0:01:18.7]} 26. Be4 {[%clk 0:00:33.9]} 26... Bxg4
{[%clk 0:00:52.2]} 27. Ng3 {[%clk 0:00:17.5]} 27... Nf3+ {[%clk 0:00:36.9]} 28.
Nxf3 {[%clk 0:00:14.7]} 28... Bxf3 {[%clk 0:00:38.8]} 29. Qg6 {[%clk 0:00:09.1]}
29... Bxe4 {[%clk 0:00:37.8]} 30. Rxe4 {[%clk 0:00:11]} 30... Rxe4 {[%clk
0:00:35.6]} 31. Qxe4 {[%clk 0:00:12.9]} 31... Qf7 {[%clk 0:00:26.6]} 32. Qg2
{[%clk 0:00:11.2]} 32... Qf3 {[%clk 0:00:27.1]} 33. Qxf3 {[%clk 0:00:10.6]}
33... Rxf3 {[%clk 0:00:29]} 34. Rd1 {[%clk 0:00:11.7]} 34... Ng4 {[%clk
0:00:27.4]} 35. Rd2 {[%clk 0:00:12.6]} 35... Bh6 {[%clk 0:00:26.1]} 36. Re2
{[%clk 0:00:07.8]} 36... Nxf2 {[%clk 0:00:22.2]} 37. Kg2 {[%clk 0:00:06.7]}
37... Rxg3+ {[%clk 0:00:16]} 38. Kxg3 {[%clk 0:00:07.6]} 38... Nxd3 {[%clk
0:00:17.1]} 39. Re4 {[%clk 0:00:07.6]} 39... Be3 {[%clk 0:00:16.1]} 40. Re7
{[%clk 0:00:07.4]} 40... Nxb4 {[%clk 0:00:13.4]} 41. Rxb7 {[%clk 0:00:09]} 41...
Nxa2 {[%clk 0:00:14.1]} 42. Rxa7 {[%clk 0:00:10.7]} 42... Nb4 {[%clk 0:00:14.7]}
43. Rd7 {[%clk 0:00:12.6]} 43... d3 {[%clk 0:00:12.2]} 44. Kf3 {[%clk
0:00:13.8]} 44... Bh6 {[%clk 0:00:12.5]} 45. Kg4 {[%clk 0:00:15.2]} 45... d2
{[%clk 0:00:13.5]} 46. Kf5 {[%clk 0:00:16.6]} 46... Kg8 {[%clk 0:00:07.3]} 47.
Kg6 {[%clk 0:00:17.8]} 47... Nc6 {[%clk 0:00:07.2]} 48. Kxh6 {[%clk 0:00:16.5]}
48... Ne5 {[%clk 0:00:07.3]} 49. Rxd2 {[%clk 0:00:16.9]} 49... Ng4+ {[%clk
0:00:08.6]} 50. Kg5 {[%clk 0:00:17.1]} 50... Ne5 {[%clk 0:00:09.8]} 51. Ra2
{[%clk 0:00:17.4]} 51... Nf7+ {[%clk 0:00:10.4]} 52. Kf6 {[%clk 0:00:18]} 52...
Nh6 {[%clk 0:00:10.5]} 53. Ra7 {[%clk 0:00:19.1]} 53... Ng4+ {[%clk 0:00:10.3]}
54. Kg5 {[%clk 0:00:19.6]} 54... Ne5 {[%clk 0:00:11.4]} 55. h6 {[%clk
0:00:19.6]} 55... Nf7+ {[%clk 0:00:11]} 56. Kh5 {[%clk 0:00:17.7]} 56... Ne5
{[%clk 0:00:12]} 57. Re7 {[%clk 0:00:16.4]} 57... Nc6 {[%clk 0:00:07.6]} 58. Re6
{[%clk 0:00:10.1]} 58... Nd4 {[%clk 0:00:07.8]} 59. Re4 {[%clk 0:00:08.6]} 59...
Nf5 {[%clk 0:00:07.9]} 60. Kg6 {[%clk 0:00:08.5]} 60... Nd6 {[%clk 0:00:04.5]}
61. Re6 {[%clk 0:00:09]} 1-0

[Event "*** Qualifier 4: Titled Tuesday 3|2 Blitz"]
[Site "Chess.com"]
[Date "2017.04.25"]
[Round "3"]
[White "GamayevOleg"]
[Black "maciek_92"]
[Result "0-1"]
[WhiteElo "2341"]
[BlackElo "2514"]
[TimeControl "180+2"]
[EndTime "13:35:43 PDT"]
[Termination "maciek_92 won by resignation"]

1. g3 {[%clk 0:03:01.9]} 1... g6 {[%clk 0:03:00.4]} 2. Bg2 {[%clk 0:03:03.1]}
2... Bg7 {[%clk 0:03:02]} 3. d4 {[%clk 0:03:05]} 3... Nf6 {[%clk 0:03:03.6]} 4.
c3 {[%clk 0:03:06.4]} 4... d6 {[%clk 0:03:01]} 5. Nf3 {[%clk 0:03:06.8]} 5...
O-O {[%clk 0:03:02.3]} 6. O-O {[%clk 0:03:08.3]} 6... Nbd7 {[%clk 0:02:55.8]} 7.
Re1 {[%clk 0:03:07.5]} 7... e5 {[%clk 0:02:57.3]} 8. dxe5 {[%clk 0:03:08.3]}
8... dxe5 {[%clk 0:02:56.7]} 9. e4 {[%clk 0:03:02.9]} 9... b6 {[%clk 0:02:54]}
10. Qc2 {[%clk 0:03:03.3]} 10... Bb7 {[%clk 0:02:55.1]} 11. Bg5 {[%clk
0:02:59.1]} 11... h6 {[%clk 0:02:51]} 12. Bxf6 {[%clk 0:03:00.2]} 12... Qxf6
{[%clk 0:02:52.9]} 13. Nfd2 {[%clk 0:02:59.3]} 13... Rfd8 {[%clk 0:02:52]} 14.
Nb3 {[%clk 0:02:59.3]} 14... Bf8 {[%clk 0:02:49.1]} 15. a4 {[%clk 0:02:58.6]}
15... a5 {[%clk 0:02:50.1]} 16. N1d2 {[%clk 0:02:58.9]} 16... Nc5 {[%clk
0:02:50.8]} 17. Nxc5 {[%clk 0:03:00]} 17... Bxc5 {[%clk 0:02:52.1]} 18. Nb3
{[%clk 0:02:59.8]} 18... Be7 {[%clk 0:02:49.4]} 19. Bh3 {[%clk 0:02:54.3]} 19...
h5 {[%clk 0:02:44.4]} 20. Rad1 {[%clk 0:02:52.2]} 20... Qc6 {[%clk 0:02:39.6]}
21. Nd2 {[%clk 0:02:41.2]} 21... Rd6 {[%clk 0:02:24.3]} 22. Bg2 {[%clk
0:02:32.3]} 22... Rad8 {[%clk 0:02:22.2]} 23. Nf1 {[%clk 0:02:33.7]} 23... Bg5
{[%clk 0:02:15.8]} 24. Bf3 {[%clk 0:02:04.6]} 24... Ba6 {[%clk 0:01:52.6]} 25.
Rxd6 {[%clk 0:01:58.1]} 25... Qxd6 {[%clk 0:01:51.6]} 26. Be2 {[%clk 0:01:58.6]}
26... Bc8 {[%clk 0:01:44.7]} 27. Bc4 {[%clk 0:01:56.8]} 27... Bh3 {[%clk
0:01:41.1]} 28. Be2 {[%clk 0:01:41.5]} 28... Kg7 {[%clk 0:01:24.8]} 29. Rd1
{[%clk 0:01:40.6]} 29... Qe7 {[%clk 0:01:20.5]} 30. Rxd8 {[%clk 0:01:40.7]}
30... Qxd8 {[%clk 0:01:21.3]} 31. Qd1 {[%clk 0:01:39.1]} 31... Qe8 {[%clk
0:01:13.5]} 32. Bc4 {[%clk 0:01:35.5]} 32... Qc6 {[%clk 0:01:06.1]} 33. Qd5
{[%clk 0:01:35]} 33... Qf6 {[%clk 0:01:07.7]} 34. Qd1 {[%clk 0:01:13]} 34... c6
{[%clk 0:00:59.4]} 35. Qe2 {[%clk 0:01:12.6]} 35... Bg4 {[%clk 0:00:55.3]} 36.
Qd3 {[%clk 0:01:03.3]} 36... h4 {[%clk 0:00:52.2]} 37. gxh4 {[%clk 0:00:58.4]}
37... Bf4 {[%clk 0:00:49.9]} 38. Ng3 {[%clk 0:00:59.4]} 38... Qxh4 {[%clk
0:00:42.9]} 39. b4 {[%clk 0:00:58.7]} 39... Qe7 {[%clk 0:00:40.3]} 40. b5 {[%clk
0:00:56.9]} 40... cxb5 {[%clk 0:00:40.2]} 41. axb5 {[%clk 0:00:58.2]} 41... a4
{[%clk 0:00:36.3]} 42. Qd5 {[%clk 0:00:59]} 42... a3 {[%clk 0:00:37.1]} 43. Kg2
{[%clk 0:01:00.1]} 43... Be6 {[%clk 0:00:34]} 44. Qd3 {[%clk 0:00:56.6]} 44...
a2 {[%clk 0:00:32.1]} 45. Bxa2 {[%clk 0:00:49]} 45... Bxa2 {[%clk 0:00:32.7]}
46. Ne2 {[%clk 0:00:47.8]} 46... Bh6 {[%clk 0:00:25.7]} 47. Ng1 {[%clk
0:00:32.9]} 47... Be6 {[%clk 0:00:22.7]} 48. Nf3 {[%clk 0:00:33.2]} 48... Bf4
{[%clk 0:00:24.2]} 49. Ng1 {[%clk 0:00:26.4]} 49... Qh4 {[%clk 0:00:22]} 50. h3
{[%clk 0:00:21.8]} 50... Qg5+ {[%clk 0:00:23]} 51. Kf1 {[%clk 0:00:21.7]} 51...
Qe7 {[%clk 0:00:20.7]} 52. Ne2 {[%clk 0:00:19.3]} 52... Qc5 {[%clk 0:00:21.6]}
53. Kg2 {[%clk 0:00:18.5]} 53... Bc4 {[%clk 0:00:20.5]} 54. Qf3 {[%clk 0:00:20]}
54... Bh6 {[%clk 0:00:21.1]} 55. Ng3 {[%clk 0:00:20.5]} 55... Qxb5 {[%clk
0:00:21.2]} 56. Qg4 {[%clk 0:00:21.6]} 56... Be6 {[%clk 0:00:22]} 57. Nh5+
{[%clk 0:00:22.5]} 57... Kf8 {[%clk 0:00:20.2]} 58. Qh4 {[%clk 0:00:22.3]} 58...
gxh5 {[%clk 0:00:18.8]} 59. Qxh5 {[%clk 0:00:23.8]} 59... Kg7 {[%clk 0:00:18.1]}
60. Qh4 {[%clk 0:00:22.9]} 60... Bf4 {[%clk 0:00:18.3]} 61. Qh5 {[%clk
0:00:22.2]} 61... Qd3 {[%clk 0:00:16.6]} 0-1

[Event "*** Qualifier 4: Titled Tuesday 3|2 Blitz"]
[Site "Chess.com"]
[Date "2017.04.25"]
[Round "3"]
[White "Sebastian"]
[Black "RobertoJBM"]
[Result "1-0"]
[WhiteElo "2738"]
[BlackElo "2448"]
[TimeControl "180+2"]
[EndTime "13:39:55 PDT"]
[Termination "Sebastian won by resignation"]

1. e4 {[%clk 0:03:02]} 1... c6 {[%clk 0:02:57.8]} 2. Nc3 {[%clk 0:03:00.6]} 2...
d5 {[%clk 0:02:59.7]} 3. Nf3 {[%clk 0:03:01.9]} 3... dxe4 {[%clk 0:03:00.9]} 4.
Nxe4 {[%clk 0:03:02.7]} 4... Bg4 {[%clk 0:03:02.6]} 5. Bc4 {[%clk 0:02:59.4]}
5... e6 {[%clk 0:03:03.4]} 6. h3 {[%clk 0:02:53.1]} 6... Bxf3 {[%clk 0:03:04.3]}
7. Qxf3 {[%clk 0:02:53.5]} 7... Nd7 {[%clk 0:03:06.2]} 8. d4 {[%clk 0:02:53]}
8... Ndf6 {[%clk 0:03:07.3]} 9. c3 {[%clk 0:02:50.9]} 9... Nxe4 {[%clk
0:03:08.1]} 10. Qxe4 {[%clk 0:02:52.6]} 10... Nf6 {[%clk 0:03:10]} 11. Qf3
{[%clk 0:02:54.2]} 11... Bd6 {[%clk 0:03:10.7]} 12. O-O {[%clk 0:02:55.1]} 12...
Qa5 {[%clk 0:03:11.5]} 13. Bd2 {[%clk 0:02:50.6]} 13... Qh5 {[%clk 0:03:11.9]}
14. Qxh5 {[%clk 0:02:46.9]} 14... Nxh5 {[%clk 0:03:13.5]} 15. g3 {[%clk
0:02:48.5]} 15... Nf6 {[%clk 0:03:14.1]} 16. Rfe1 {[%clk 0:02:48.9]} 16... h5
{[%clk 0:03:14.2]} 17. Kg2 {[%clk 0:02:48.6]} 17... Kd7 {[%clk 0:03:14.9]} 18.
Rad1 {[%clk 0:02:49.2]} 18... h4 {[%clk 0:03:13.3]} 19. g4 {[%clk 0:02:50]}
19... Nd5 {[%clk 0:03:14]} 20. Kf3 {[%clk 0:02:43]} 20... b5 {[%clk 0:03:13.7]}
21. Bd3 {[%clk 0:02:39.3]} 21... f6 {[%clk 0:03:10.7]} 22. Re2 {[%clk
0:02:33.4]} 22... Rae8 {[%clk 0:03:05]} 23. Rde1 {[%clk 0:02:33.7]} 23... g5
{[%clk 0:03:03.5]} 24. Be4 {[%clk 0:02:19.3]} 24... Re7 {[%clk 0:02:58.1]} 25.
b3 {[%clk 0:02:13.1]} 25... Nf4 {[%clk 0:02:54.2]} 26. Bxf4 {[%clk 0:02:13.3]}
26... Bxf4 {[%clk 0:02:56.1]} 27. c4 {[%clk 0:02:08.2]} 27... bxc4 {[%clk
0:02:56.8]} 28. bxc4 {[%clk 0:02:09.7]} 28... Rb8 {[%clk 0:02:58.3]} 29. Bg6
{[%clk 0:02:10.8]} 29... e5 {[%clk 0:02:53.4]} 30. Rd1 {[%clk 0:01:49.3]} 30...
Kc7 {[%clk 0:02:47.5]} 31. d5 {[%clk 0:01:50.6]} 31... cxd5 {[%clk 0:02:42]} 32.
cxd5 {[%clk 0:01:51.1]} 32... Kd6 {[%clk 0:02:42.7]} 33. Rc2 {[%clk 0:01:51.1]}
33... Rc7 {[%clk 0:02:41.9]} 34. Rxc7 {[%clk 0:01:50.7]} 34... Kxc7 {[%clk
0:02:43.8]} 35. d6+ {[%clk 0:01:52.1]} 35... Kc6 {[%clk 0:02:40]} 36. Be4+
{[%clk 0:01:51.4]} 36... Kd7 {[%clk 0:02:39]} 37. Bf5+ {[%clk 0:01:52.1]} 37...
Kd8 {[%clk 0:02:39.5]} 38. d7 {[%clk 0:01:49.8]} 38... Rb7 {[%clk 0:02:27.2]}
39. Rd5 {[%clk 0:01:45.4]} 39... e4+ {[%clk 0:02:10.3]} 40. Kxe4 {[%clk
0:01:46.3]} 40... Rb4+ {[%clk 0:02:06.1]} 41. Kf3 {[%clk 0:01:45.5]} 41... Bc7
{[%clk 0:02:07.6]} 42. Rd2 {[%clk 0:01:36.8]} 42... Bf4 {[%clk 0:02:04.9]} 43.
Rc2 {[%clk 0:01:36.2]} 43... Bc7 {[%clk 0:02:05.4]} 44. Kg2 {[%clk 0:01:33.6]}
44... a5 {[%clk 0:02:00]} 45. Rc6 {[%clk 0:01:28.5]} 45... Rb6 {[%clk
0:01:57.7]} 46. Rc5 {[%clk 0:01:26.8]} 46... Rb2 {[%clk 0:01:54.2]} 47. Rc6
{[%clk 0:01:21.6]} 47... Rb6 {[%clk 0:01:54.3]} 48. Rc2 {[%clk 0:01:22.4]} 48...
Rb4 {[%clk 0:01:47.1]} 49. Kf3 {[%clk 0:00:59.5]} 49... Rf4+ {[%clk 0:01:39.1]}
50. Ke3 {[%clk 0:00:56.8]} 50... Bb6+ {[%clk 0:01:35.9]} 51. Kd3 {[%clk
0:00:57]} 51... Rd4+ {[%clk 0:01:33.2]} 52. Ke2 {[%clk 0:00:56.3]} 52... Bc7
{[%clk 0:01:33.8]} 53. Rc6 {[%clk 0:00:49.4]} 53... Rd6 {[%clk 0:01:34.8]} 54.
Rc5 {[%clk 0:00:49.3]} 54... Rb6 {[%clk 0:01:35.5]} 55. Rc2 {[%clk 0:00:42.7]}
55... Rb4 {[%clk 0:01:35.9]} 56. Kd3 {[%clk 0:00:41.3]} 56... Rb6 {[%clk
0:01:32.4]} 57. Ke4 {[%clk 0:00:38.2]} 57... Rb5 {[%clk 0:01:30.2]} 58. Rc6
{[%clk 0:00:33.8]} 58... Rb6 {[%clk 0:01:31.3]} 59. Rc2 {[%clk 0:00:27.4]} 59...
Rb4+ {[%clk 0:01:32.3]} 60. Kd5 {[%clk 0:00:27.2]} 60... Rb6 {[%clk 0:01:32.9]}
61. Re2 {[%clk 0:00:24]} 61... Be5 {[%clk 0:01:33.3]} 62. Ke4 {[%clk 0:00:16.6]}
62... Bc7 {[%clk 0:01:32.8]} 63. Rd2 {[%clk 0:00:16.7]} 63... Rd6 {[%clk
0:01:29.7]} 64. Rc2 {[%clk 0:00:15.4]} 64... Rb6 {[%clk 0:01:30.6]} 65. Kd5
{[%clk 0:00:16.5]} 65... Rd6+ {[%clk 0:01:31.2]} 66. Kc5 {[%clk 0:00:17.7]}
66... Rd1 {[%clk 0:01:15.2]} 67. Kb5 {[%clk 0:00:15.8]} 67... Rb1+ {[%clk
0:01:11.4]} 68. Ka6 {[%clk 0:00:17]} 68... Rb6+ {[%clk 0:01:11.3]} 69. Ka7
{[%clk 0:00:17.9]} 69... Rb4 {[%clk 0:01:10]} 70. Rc6 {[%clk 0:00:15.5]} 70...
Bb8+ {[%clk 0:01:06.8]} 71. Ka6 {[%clk 0:00:15.5]} 71... Bc7 {[%clk 0:01:02.4]}
72. a3 {[%clk 0:00:12.4]} 72... Rd4 {[%clk 0:00:58.9]} 73. Kb7 {[%clk
0:00:12.4]} 73... Rd2 {[%clk 0:00:55.1]} 74. Ra6 {[%clk 0:00:09.1]} 74... Rb2+
{[%clk 0:00:54.5]} 75. Kc6 {[%clk 0:00:10.2]} 75... Rb3 {[%clk 0:00:37.3]} 76.
a4 {[%clk 0:00:10.8]} 76... Rb4 {[%clk 0:00:35.8]} 77. Kd5 {[%clk 0:00:08.4]}
77... Rb6 {[%clk 0:00:35.5]} 78. Ra8+ {[%clk 0:00:06.3]} 78... Rb8 {[%clk
0:00:36.1]} 79. Ra7 {[%clk 0:00:06.5]} 79... Rb6 {[%clk 0:00:36.7]} 80. Kc5
{[%clk 0:00:07.3]} 80... Rb3 {[%clk 0:00:34.3]} 81. Ra8+ {[%clk 0:00:08.1]}
81... Rb8 {[%clk 0:00:35.2]} 82. Ra6 {[%clk 0:00:09.5]} 82... Ke7 {[%clk
0:00:23.3]} 83. Kc6 {[%clk 0:00:05.4]} 83... Kd8 {[%clk 0:00:22.9]} 84. Kd5
{[%clk 0:00:05.4]} 84... Ke7 {[%clk 0:00:23.2]} 85. Kc5 {[%clk 0:00:05]} 85...
Rb2 {[%clk 0:00:20.8]} 86. Kd5 {[%clk 0:00:04.4]} 86... Rd2+ {[%clk 0:00:20.3]}
87. Kc5 {[%clk 0:00:05.6]} 87... Rd6 {[%clk 0:00:14.8]} 88. Ra8 {[%clk
0:00:04.5]} 88... Bb6+ {[%clk 0:00:11.9]} 89. Kb5 {[%clk 0:00:05.7]} 89... Bd8
{[%clk 0:00:13.5]} 90. Rc8 {[%clk 0:00:05.9]} 90... Rd5+ {[%clk 0:00:14.7]} 91.
Ka6 {[%clk 0:00:06.3]} 91... Rd2 {[%clk 0:00:16.6]} 92. Rc4 {[%clk 0:00:04.9]}
92... Rd6+ {[%clk 0:00:15.7]} 93. Kb7 {[%clk 0:00:05.4]} 93... Rd5 {[%clk
0:00:17]} 94. Re4+ {[%clk 0:00:05]} 94... Re5 {[%clk 0:00:18.4]} 95. Rc4 {[%clk
0:00:05.3]} 95... Re2 {[%clk 0:00:19.6]} 96. Kc8 {[%clk 0:00:05.8]} 96... Re5
{[%clk 0:00:20.1]} 97. Rc6 {[%clk 0:00:06.1]} 97... Re1 {[%clk 0:00:20.7]} 98.
Kb7 {[%clk 0:00:06.5]} 98... Re2 {[%clk 0:00:20.7]} 99. Ka6 {[%clk 0:00:06.8]}
99... Re5 {[%clk 0:00:20.6]} 100. Rc4 {[%clk 0:00:06.5]} 100... Kd6 {[%clk
0:00:19.9]} 101. f4 {[%clk 0:00:06.6]} 101... gxf4 {[%clk 0:00:20.3]} 102. Rxf4
{[%clk 0:00:08.3]} 102... Ke7 {[%clk 0:00:21]} 103. Rd4 {[%clk 0:00:08.9]}
103... Re3 {[%clk 0:00:21.8]} 104. Rc4 {[%clk 0:00:08.8]} 104... Kd6 {[%clk
0:00:22.1]} 105. Rc8 {[%clk 0:00:08.3]} 105... Ke7 {[%clk 0:00:22.9]} 106. Rc6
{[%clk 0:00:09.8]} 106... Re5 {[%clk 0:00:23.2]} 107. Rc4 {[%clk 0:00:09.2]}
107... Re3 {[%clk 0:00:24.4]} 108. Rd4 {[%clk 0:00:09.5]} 108... Re2 {[%clk
0:00:24.5]} 109. Kb5 {[%clk 0:00:08.8]} 109... Re5+ {[%clk 0:00:25.7]} 110. Kc4
{[%clk 0:00:09.4]} 110... Bb6 {[%clk 0:00:27.2]} 111. Rd2 {[%clk 0:00:08.6]}
111... Bd8 {[%clk 0:00:28.3]} 112. Kd3 {[%clk 0:00:08.7]} 112... Rd5+ {[%clk
0:00:28.9]} 113. Ke2 {[%clk 0:00:10]} 113... Rxd2+ {[%clk 0:00:30.8]} 114. Kxd2
{[%clk 0:00:11.6]} 114... Bc7 {[%clk 0:00:31.9]} 115. Kd3 {[%clk 0:00:12.7]}
115... Bf4 {[%clk 0:00:32.6]} 116. Kc4 {[%clk 0:00:13.6]} 116... Kd8 {[%clk
0:00:34]} 117. Kd5 {[%clk 0:00:14.5]} 117... Bd2 {[%clk 0:00:35.1]} 118. Ke6
{[%clk 0:00:15.3]} 118... Bg5 {[%clk 0:00:33.5]} 119. Bd3 {[%clk 0:00:14.2]}
119... Kc7 {[%clk 0:00:33]} 120. Be4 {[%clk 0:00:14.7]} 120... Kd8 {[%clk
0:00:34.4]} 121. Bf5 {[%clk 0:00:15.7]} 121... Bc1 {[%clk 0:00:28.8]} 122. Kxf6
{[%clk 0:00:16.9]} 122... Bd2 {[%clk 0:00:29.2]} 123. g5 {[%clk 0:00:16.9]}
123... Bc3+ {[%clk 0:00:29.4]} 124. Kf7 {[%clk 0:00:17.9]} 1-0

[Event "*** Qualifier 4: Titled Tuesday 3|2 Blitz"]
[Site "Chess.com"]
[Date "2017.04.25"]
[Round "4"]
[White "gmcorrales"]
[Black "ChessQueen"]
[Result "1-0"]
[WhiteElo "2606"]
[BlackElo "2491"]
[TimeControl "180+2"]
[EndTime "13:42:51 PDT"]
[Termination "gmcorrales won by resignation"]

1. e4 {[%clk 0:03:02]} 1... c5 {[%clk 0:02:57.9]} 2. Nf3 {[%clk 0:03:02.8]} 2...
Nc6 {[%clk 0:02:58.7]} 3. d4 {[%clk 0:03:03.6]} 3... cxd4 {[%clk 0:02:59.6]} 4.
Nxd4 {[%clk 0:03:05.5]} 4... Nf6 {[%clk 0:02:59.6]} 5. Nc3 {[%clk 0:03:05.8]}
5... d6 {[%clk 0:03:00.7]} 6. Bg5 {[%clk 0:03:06.1]} 6... e6 {[%clk 0:03:01.6]}
7. Qd2 {[%clk 0:03:06.5]} 7... a6 {[%clk 0:03:03.1]} 8. O-O-O {[%clk 0:03:07.6]}
8... h6 {[%clk 0:03:04.4]} 9. Bxf6 {[%clk 0:03:01.1]} 9... Qxf6 {[%clk
0:03:02.1]} 10. Nxc6 {[%clk 0:03:02.4]} 10... bxc6 {[%clk 0:03:03.1]} 11. f4
{[%clk 0:03:04.1]} 11... g5 {[%clk 0:02:52]} 12. g3 {[%clk 0:03:04.8]} 12... d5
{[%clk 0:02:49.1]} 13. exd5 {[%clk 0:02:27.8]} 13... cxd5 {[%clk 0:02:49.1]} 14.
Nxd5 {[%clk 0:02:28.6]} 14... exd5 {[%clk 0:02:49.7]} 15. Qxd5 {[%clk
0:02:30.5]} 15... Rb8 {[%clk 0:02:41.8]} 16. Bb5+ {[%clk 0:02:28.5]} 1-0